fUST/lending_fUST_20250830
["ID","MTS","AMOUNT","RATE_DAILY","PERIOD"]
[382058801,1756491047367,-161.148955,0.00029273,7]
[382058803,1756491047377,-312.458848,0.00029273,7]
[382058805,1756491047386,-161.148955,0.00029273,7]
[382058807,1756491047395,-161.148955,0.00029273,7]
[382058809,1756491047406,-151.0,0.00029273,7]
[382058811,1756491047416,-161.148955,0.00029273,7]
[382058813,1756491047425,-168.449759,0.00029273,7]
[382058815,1756491047435,-151.0,0.00029273,7]
[382058817,1756491047444,-151.0,0.00029273,7]
[382058819,1756491047453,-151.0,0.00029273,7]
[382058821,1756491047462,-151.41952284,0.00029289,15]
[382058823,1756491047472,-198.5426892,0.00029289,15]
[382058825,1756491047482,-151.0,0.00029289,15]
[382058827,1756491047493,-151.0,0.00029289,15]
[382058829,1756491047502,-152.05357122,0.00029289,15]
[382058831,1756491047512,-216.02660723,0.00029289,15]
[382058833,1756491047521,-151.0,0.00029289,15]
[382058835,1756491047531,-151.0,0.00029289,15]
[382058837,1756491047541,-151.0,0.00029289,15]
[382058839,1756491047550,-151.0,0.00029289,15]
[382058841,1756491047561,-151.0,0.00029289,15]
[382058843,1756491047571,-151.0,0.00029289,15]
[382058845,1756491047580,-151.43890125,0.00029289,15]
[382058847,1756491047589,-500.0,0.00029289,15]
[382058849,1756491047599,-151.0,0.00029289,15]
[382058850,1756491047608,-151.0,0.00029289,15]
[382058851,1756491047618,-580.08213248,0.00029289,15]
[382058852,1756491047627,-152.00084592,0.00029289,15]
[382058853,1756491047637,-151.0,0.00029289,15]
[382058854,1756491047647,-151.0,0.00029289,2]
[382058855,1756491047656,-151.0,0.00029289,15]
[382058857,1756491047666,-151.0,0.00029289,15]
[382058859,1756491047676,-500.0,0.00029303,20]
[382058861,1756491047686,-199.72723652,0.00029303,20]
[382058863,1756491047695,-1680.0,0.00029307,2]
[382058865,1756491047705,-154.84,0.00029315,15]
[382058867,1756491047715,-876.0520506,0.00029316,5]
[382058868,1756491047725,-2000.0,0.00029316,5]
[382058870,1756491047735,-503.03682746,0.00029316,5]
[382058872,1756491047744,-1515.52378598,0.00029316,5]
[382058874,1756491047755,-2012.78708781,0.00029316,5]
[382058876,1756491047764,-1114.54043906,0.00029316,5]
[382058878,1756491047774,-646.32444962,0.00029316,5]
[382058880,1756491047784,-2000.0,0.00029316,5]
[382058882,1756491047794,-1522.1386741,0.00029316,5]
[382058884,1756491047803,-500.0,0.00029382,5]
[382058885,1756491047813,-151.0,0.00029562,7]
[382058886,1756491047823,-151.0,0.00029562,7]
[382058887,1756491047833,-151.0,0.00029562,7]
[382058888,1756491047842,-221.477214,0.00029562,7]
[382058889,1756491047851,-221.477214,0.00029562,7]
[382058890,1756491047860,-221.477214,0.00029562,7]
[382058891,1756491047869,-221.477214,0.00029562,7]
[382058892,1756491047879,-152.56552158,0.00029563,15]
[382058893,1756491047888,-151.0,0.00029563,15]
[382058894,1756491047898,-199.24428082,0.00029563,15]
[382058895,1756491047908,-198.7638952,0.00029563,15]
[382058896,1756491047918,-151.0,0.00029563,15]
[382058897,1756491047927,-151.0,0.00029563,15]
[382058898,1756491047936,-198.0,0.00029563,15]
[382058899,1756491047946,-151.0,0.00029563,15]
[382058900,1756491047955,-198.0,0.00029563,15]
[382058901,1756491047964,-151.0,0.00029563,15]
[382058902,1756491047974,-251.6997669,0.00029563,2]
[382058903,1756491047983,-198.0,0.00029563,15]
[382058904,1756491047993,-151.0,0.00029563,15]
[382058905,1756491048002,-500.0,0.00029577,20]
[382058906,1756491048012,-381.52642049,0.00029614,2]
[382058907,1756491048021,-8793.90080309,0.00029625,2]
[382058908,1756491048031,-460.0,0.00029644,2]
[382058909,1756491048040,-508.25223527,0.00029648,5]
[382058910,1756491048050,-1000.0,0.00029648,5]
[382058911,1756491048060,-1000.0,0.00029648,5]
[382058912,1756491048070,-938.34,0.000297,7]
[382058913,1756491048079,-500.0,0.00029706,2]
[382058914,1756491048090,-3000.0,0.00029712,5]
[382058915,1756491048100,-381.52642049,0.000298,2]
[382058916,1756491048110,-151.0,0.0002981,7]
[382058917,1756491048120,-151.0,0.0002981,7]
[382058918,1756491048130,-151.0,0.0002981,7]
[382058919,1756491048140,-151.64,0.0002981,7]
[382058920,1756491048151,-151.0,0.0002981,7]
[382058921,1756491048160,-151.0,0.0002981,7]
[382058923,1756491048176,-151.0,0.0002981,7]
[382058925,1756491048186,-151.0,0.0002981,7]
[382058927,1756491048196,-151.0,0.0002981,7]
[382058929,1756491048207,-153.708351,0.0002981,7]
[382058932,1756491048216,-151.0,0.0002981,7]
[382058934,1756491048226,-159.638801,0.0002981,7]
[382058935,1756491048236,-151.0,0.0002981,7]
[382058937,1756491048245,-151.0,0.0002981,7]
[382058939,1756491048256,-271.376281,0.0002981,7]
[382058941,1756491048265,-271.376281,0.0002981,7]
[382058943,1756491048275,-271.376281,0.0002981,7]
[382058945,1756491048290,-271.376281,0.0002981,7]
[382058947,1756491048302,-151.0,0.0002981,7]
[382058949,1756491048313,-151.0,0.0002981,7]
[382058951,1756491048327,-1000.0,0.0002981,2]
[382058953,1756491048337,-1000.0,0.0002981,2]
[382058955,1756491048347,-1000.0,0.0002981,2]
[382058957,1756491048357,-1000.0,0.0002981,2]
[382058959,1756491048367,-1000.0,0.0002981,2]
[382058961,1756491048378,-1000.0,0.0002981,2]
[382058963,1756491048388,-1000.0,0.0002981,2]
[382058965,1756491048397,-1000.0,0.0002981,2]
[382058967,1756491048409,-1000.0,0.0002981,2]
[382058969,1756491048420,-1000.0,0.0002981,2]
[382058971,1756491048429,-1000.0,0.0002981,2]
[382058973,1756491048439,-1000.0,0.0002981,2]
[382058975,1756491048449,-1000.0,0.0002981,2]
[382058977,1756491048458,-1000.0,0.0002981,2]
[382058979,1756491048468,-1000.0,0.0002981,2]
[382058981,1756491048477,-1000.0,0.0002981,2]
[382058983,1756491048486,-1000.0,0.0002981,2]
[382058985,1756491048495,-1000.0,0.0002981,2]
[382058987,1756491048505,-1000.0,0.0002981,2]
[382058989,1756491048514,-1000.0,0.0002981,2]
[382058991,1756491048523,-1000.0,0.0002981,2]
[382059003,1756491048625,-1000.0,0.0002981,2]
[382059006,1756491048650,-1000.0,0.0002981,2]
[382059008,1756491048660,-1000.0,0.0002981,2]
[382059010,1756491048670,-221.893712,0.0002981,7]
[382059012,1756491048678,-1000.0,0.0002981,2]
[382059014,1756491048688,-1000.0,0.0002981,2]
[382059016,1756491048698,-1000.0,0.0002981,2]
[382059018,1756491048708,-221.893712,0.0002981,7]
[382059020,1756491048718,-1000.0,0.0002981,2]
[382059022,1756491048728,-1000.0,0.0002981,2]
[382059024,1756491048738,-1000.0,0.0002981,2]
[382059026,1756491048748,-1000.0,0.0002981,2]
[382059028,1756491048757,-1000.0,0.0002981,2]
[382059030,1756491048767,-1000.0,0.0002981,2]
[382059032,1756491048777,-1000.0,0.0002981,2]
[382059034,1756491048787,-1000.0,0.0002981,2]
[382059036,1756491048796,-511.008133,0.0002981,2]
[382059038,1756491048806,-221.893712,0.0002981,7]
[382059040,1756491048815,-312.458848,0.0002981,7]
[382059041,1756491048825,-221.893712,0.0002981,7]
[382059043,1756491048834,-312.458848,0.0002981,7]
[382059045,1756491048843,-312.458848,0.0002981,7]
[382059047,1756491048853,-161.148955,0.0002981,7]
[382059049,1756491048862,-312.458848,0.0002981,7]
[382059051,1756491048872,-161.148955,0.0002981,7]
[382059053,1756491048882,-161.148955,0.0002981,7]
[382059055,1756491048892,-151.0,0.0002981,7]
[382059057,1756491048901,-161.148955,0.0002981,7]
[382059059,1756491048911,-151.0,0.0002981,7]
[382059061,1756491048920,-151.0,0.0002981,7]
[382059063,1756491048930,-151.0,0.0002981,7]
[382059065,1756491048938,-151.0,0.0002981,7]
[382059067,1756491048948,-288.443442,0.0002981,7]
[382059069,1756491048958,-288.443442,0.0002981,7]
[382059071,1756491048967,-288.443442,0.0002981,7]
[382059073,1756491048977,-288.443451,0.0002981,7]
[382059075,1756491048987,-151.0,0.0002981,7]
[382059077,1756491048996,-151.0,0.0002981,7]
[382059079,1756491049006,-754.224366,0.0002981,7]
[382059081,1756491049017,-754.224366,0.0002981,7]
[382059083,1756491049026,-754.224366,0.0002981,7]
[382059085,1756491049036,-754.224368,0.0002981,7]
[382059087,1756491049046,-2500.0,0.00029812,5]
[382059090,1756491049056,-3000.0,0.00029812,5]
[382059092,1756491049065,-450.0,0.00029816,5]
[382059094,1756491049075,-1011.67968354,0.00029821,5]
[382059096,1756491049085,-1000.0,0.00029821,5]
[382059098,1756491049095,-1000.0,0.00029821,5]
[382059100,1756491049105,-1000.0,0.00029821,5]
[382059102,1756491049115,-1000.0,0.00029821,5]
[382059104,1756491049127,-1000.0,0.00029821,2]
[382059106,1756491049136,-1001.49623136,0.00029821,5]
[382059108,1756491049146,-151.0,0.00029821,7]
[382059110,1756491049157,-151.0,0.00029821,7]
[382059112,1756491049168,-151.0,0.00029821,7]
[382059114,1756491049178,-151.0,0.00029821,7]
[382059116,1756491049189,-151.0,0.00029821,7]
[382059118,1756491049200,-151.0,0.00029821,7]
[382059120,1756491049209,-151.0,0.00029821,7]
[382059122,1756491049222,-151.0,0.00029821,7]
[382059124,1756491049231,-151.0,0.00029821,7]
[382059126,1756491049241,-165.095964,0.00029821,7]
[382059128,1756491049251,-151.0,0.00029821,7]
[382059130,1756491049261,-151.0,0.00029821,7]
[382059132,1756491049270,-151.0,0.00029821,7]
[382059134,1756491049280,-151.0,0.00029821,7]
[382059136,1756491049291,-151.0,0.00029821,7]
[382059138,1756491049300,-151.0,0.00029821,7]
[382059140,1756491049310,-151.0,0.00029821,7]
[382059142,1756491049320,-151.0,0.00029821,7]
[382059144,1756491049333,-213.822382,0.00029821,7]
[382059146,1756491049342,-221.477214,0.00029821,7]
[382059148,1756491049354,-221.477214,0.00029821,7]
[382059150,1756491049363,-221.477214,0.00029821,7]
[382059152,1756491049372,-221.477214,0.00029821,7]
[382059154,1756491049382,-245.91753249,0.00029837,15]
[382059156,1756491049392,-151.0,0.00029837,15]
[382059158,1756491049402,-151.0,0.00029837,15]
[382059160,1756491049413,-151.0,0.00029837,15]
[382059162,1756491049423,-500.0,0.00029851,20]
[382059164,1756491049432,-2500.0,0.00029864,5]
[382059166,1756491049442,-2500.0,0.00029864,5]
[382059169,1756491049453,-500.0,0.00029873,5]
[382059171,1756491049462,-500.0,0.00029873,5]
[382059173,1756491049471,-368.95975832,0.00029873,5]
[382059175,1756491049480,-99.27521734,0.00029873,5]
[382059205,1756491049752,-400.72478266,0.00029873,5]
[382059207,1756491049762,-500.0,0.00029873,5]
[382059210,1756491049773,-500.0,0.00029873,5]
[382059211,1756491049783,-500.0,0.00029973,5]
[382059213,1756491049792,-500.0,0.00029973,5]
[382059215,1756491049802,-381.52642049,0.0002998,2]
[382059217,1756491049811,-151.0,0.0002999,7]
[382059218,1756491049821,-151.0,0.0002999,7]
[382059219,1756491049830,-151.0,0.0002999,7]
[382059220,1756491049839,-151.0,0.0002999,7]
[382059221,1756491049849,-151.0,0.0002999,7]
[382059222,1756491049858,-151.0,0.0002999,7]
[382059223,1756491049867,-151.0,0.0002999,7]
[382059224,1756491049877,-151.0,0.0002999,7]
[382059225,1756491049886,-151.0,0.0002999,7]
[382059226,1756491049896,-151.0,0.0002999,7]
[382059227,1756491049905,-271.376281,0.0002999,7]
[382059228,1756491049914,-271.376281,0.0002999,7]
[382059229,1756491049924,-271.376281,0.0002999,7]
[382059230,1756491049933,-271.376281,0.0002999,7]
[382059232,1756491049942,-151.0,0.0002999,7]
[382059233,1756491049951,-151.0,0.0002999,7]
[382059235,1756491049961,-221.893712,0.0002999,7]
[382059237,1756491049971,-221.893712,0.0002999,7]
[382059239,1756491049981,-221.893712,0.0002999,7]
[382059241,1756491049991,-312.458848,0.0002999,7]
[382059243,1756491050003,-221.893712,0.0002999,7]
[382059245,1756491050012,-312.458848,0.0002999,7]
[382059247,1756491050022,-312.458848,0.0002999,7]
[382059249,1756491050031,-161.148955,0.0002999,7]
[382059251,1756491050040,-312.458845,0.0002999,7]
[382059253,1756491050050,-161.148955,0.0002999,7]
[382059255,1756491050059,-161.148955,0.0002999,7]
[382059257,1756491050068,-151.0,0.0002999,7]
[382059259,1756491050078,-161.148955,0.0002999,7]
[382059261,1756491050088,-151.0,0.0002999,7]
[382059263,1756491050097,-151.0,0.0002999,7]
[382059265,1756491050108,-198.0,0.00030111,15]
[382059268,1756491050117,-198.0,0.00030111,15]
[382059269,1756491050126,-198.0,0.00030111,15]
[382059272,1756491050137,-500.0,0.00030125,20]
[382059274,1756491050146,-8793.90080309,0.00030147,2]
[382059276,1756491050155,-560.0,0.00030192,2]
[382059278,1756491050164,-483.11959194,0.00030196,5]
[382059279,1756491050173,-1000.0,0.00030196,5]
[382059281,1756491050183,-151.0,0.00030196,7]
[382059284,1756491050193,-151.0,0.00030196,7]
[382059286,1756491050203,-433.548376,0.00030196,7]
[382059288,1756491050212,-433.548376,0.00030196,7]
[382059290,1756491050222,-433.548376,0.00030196,7]
[382059292,1756491050231,-433.548376,0.00030196,7]
[382059305,1756491050354,-151.0,0.00030196,7]
[382059307,1756491050364,-153.497539,0.00030196,7]
[382059309,1756491050374,-320.21011115,0.0003026,5]
[382059953,1756491068087,-151.0,0.000276,7]
[382059954,1756491068097,-367.151548,0.000276,7]
[382059955,1756491068107,-151.0,0.000276,7]
[382059956,1756491068118,-367.151548,0.000276,7]
[382059957,1756491068128,-151.0,0.000276,7]
[382059958,1756491068138,-367.151548,0.000276,7]
[382059959,1756491068149,-151.0,0.00027673,7]
[382059960,1756491068159,-367.151548,0.00027673,7]
[382059961,1756491068170,-151.0,0.00027673,7]
[382059962,1756491068179,-367.151548,0.00027673,7]
[382059963,1756491068190,-367.151548,0.00027673,7]
[382059964,1756491068200,-151.0,0.00027923,7]
[382059965,1756491068212,-367.151548,0.00027923,7]
[382059966,1756491068222,-151.0,0.00027923,7]
[382059967,1756491068233,-367.151548,0.00027923,7]
[382059968,1756491068245,-367.151548,0.00027923,7]
[382059969,1756491068256,-529.77114056,0.00027973,7]
[382059970,1756491068267,-367.151548,0.00028168,7]
[382059971,1756491068276,-151.0,0.00028168,7]
[382059972,1756491068285,-367.151548,0.00028168,7]
[382059973,1756491068297,-151.0,0.00028168,7]
[382059974,1756491068307,-367.151548,0.00028168,7]
[382059975,1756491068317,-367.151548,0.00028168,7]
[382059976,1756491068329,-367.151548,0.00028768,7]
[382059977,1756491068338,-151.0,0.00028768,7]
[382059978,1756491068348,-367.151548,0.00028768,7]
[382059979,1756491068357,-151.0,0.00028768,7]
[382059980,1756491068367,-367.151548,0.00028768,7]
[382059981,1756491068376,-367.15154,0.00028768,7]
[382059982,1756491068386,-784.12600008,0.0003026,5]
[382059983,1756491068396,-381.52642049,0.00030358,2]
[382059984,1756491068408,-151.0,0.00030359,7]
[382059985,1756491068418,-151.0,0.00030359,7]
[382059986,1756491068427,-221.477214,0.00030359,7]
[382059987,1756491068436,-221.477214,0.00030359,7]
[382059988,1756491068445,-221.477214,0.00030359,7]
[382059989,1756491068455,-221.477214,0.00030359,7]
[382059990,1756491068464,-151.0,0.00030359,7]
[382059991,1756491068474,-151.0,0.00030359,7]
[382059992,1756491068484,-151.0,0.00030359,7]
[382059993,1756491068493,-151.0,0.00030359,7]
[382059994,1756491068503,-151.0,0.00030359,7]
[382059995,1756491068512,-151.0,0.00030359,7]
[382059996,1756491068522,-151.0,0.00030359,7]
[382059997,1756491068531,-271.376281,0.00030359,7]
[382059998,1756491068540,-271.376281,0.00030359,7]
[382059999,1756491068549,-271.376281,0.00030359,7]
[382060000,1756491068561,-271.376277,0.00030359,7]
[382060001,1756491068570,-151.0,0.00030359,7]
[382060002,1756491068579,-221.893712,0.00030359,7]
[382060003,1756491068588,-221.893712,0.00030359,7]
[382060004,1756491068597,-221.893712,0.00030359,7]
[382060005,1756491068607,-221.893715,0.00030359,7]
[382060006,1756491068616,-151.0,0.00030359,7]
[382060007,1756491068626,-500.0,0.00030364,5]
[382060008,1756491068635,-151.0,0.00030368,7]
[382060009,1756491068645,-221.168437,0.00030368,7]
[382060010,1756491068655,-151.0,0.00030368,7]
[382060011,1756491068666,-964.90478575,0.00030368,5]
[382060012,1756491068675,-514.00608882,0.00030368,5]
[382060013,1756491068685,-1350.18167759,0.00030368,5]
[382060014,1756491068696,-265.34813812,0.00030368,5]
[382060015,1756491068706,-1088.00830605,0.00030368,2]
[382060016,1756491068717,-500.0,0.00030399,20]
[382060017,1756491068726,-3000.0,0.00030412,5]
[382060018,1756491068736,-1000.0,0.00030421,5]
[382060019,1756491068745,-1000.0,0.00030421,5]
[382060020,1756491068755,-1000.0,0.00030421,5]
[382060021,1756491068764,-1000.0,0.00030421,5]
[382060022,1756491068773,-908.9402474,0.00030421,5]
[382060023,1756491068783,-1000.0,0.00030521,5]
[382060024,1756491068793,-1000.0,0.00030521,5]
[382060025,1756491068803,-1871.2,0.00030563,3]
[382060026,1756491068814,-935.6,0.00030563,3]
[382060027,1756491068823,-467.8,0.00030563,3]
[382060028,1756491068833,-7484.76,0.00030565,3]
[382060029,1756491068843,-3742.38,0.00030565,3]
[382060030,1756491068854,-500.0,0.00030573,5]
[382060031,1756491068865,-500.0,0.00030573,5]
[382060032,1756491068875,-206.02767631,0.00030573,5]
[382060033,1756491068884,-160.0,0.000306,3]
[382060034,1756491068894,-160.0,0.000306,3]
[382060035,1756491068905,-160.0,0.000306,3]
[382060036,1756491068915,-217.30324474,0.000306,3]
[382060037,1756491068926,-425.57542551,0.000306,3]
[382060038,1756491068938,-529.77114056,0.000306,3]
[382060039,1756491068949,-381.52642049,0.0003066,2]
[382060040,1756491068959,-8793.90080309,0.0003067,2]
[382060041,1756491068970,-500.0,0.00030673,20]
[382060042,1756491068979,-151.232836,0.00030734,7]
[382060043,1756491068989,-151.0,0.00030734,7]
[382060044,1756491068999,-151.0,0.00030734,7]
[382060045,1756491069009,-152.560445,0.00030734,7]
[382060046,1756491069020,-151.0,0.00030734,7]
[382060047,1756491069030,-660.0,0.0003074,2]
[382060048,1756491069040,-151.0,0.00030744,7]
[382060049,1756491069050,-151.0,0.00030744,7]
[382060050,1756491069061,-151.148877,0.00030744,7]
[382060051,1756491069070,-151.567649,0.00030744,7]
[382060052,1756491069079,-151.0,0.00030744,7]
[382060053,1756491069089,-151.0,0.00030744,7]
[382060054,1756491069098,-151.0,0.00030744,7]
[382060056,1756491069109,-151.0,0.00030744,7]
[382060057,1756491069118,-151.0,0.00030932,7]
[382060058,1756491069128,-151.0,0.00030932,7]
[382060059,1756491069138,-151.0,0.00030932,7]
[382060060,1756491069149,-151.0,0.00030932,7]
[382060061,1756491069159,-151.0,0.00030932,7]
[382060062,1756491069169,-151.0,0.00030932,7]
[382060063,1756491069266,-151.0,0.00030932,7]
[382060064,1756491069277,-151.0,0.00030932,7]
[382060065,1756491069287,-151.0,0.00030932,7]
[382060066,1756491069298,-543.39665894,0.00030947,20]
[382060067,1756491069308,-3000.0,0.0003096,5]
[382060068,1756491069318,-1365.03455266,0.00030968,5]
[382060069,1756491069331,-735.24630232,0.00030968,5]
[382060070,1756491069341,-726.26693758,0.00030968,5]
[382060071,1756491069351,-579.48869001,0.00030968,5]
[382060072,1756491069362,-151.0,0.0003099,7]
[382060073,1756491069373,-151.0,0.0003099,7]
[382060074,1756491069383,-221.477214,0.0003099,7]
[382060075,1756491069393,-221.477214,0.0003099,7]
[382060076,1756491069405,-221.477214,0.0003099,7]
[382060077,1756491069415,-221.477207,0.0003099,7]
[382060078,1756491069424,-159.0,0.00031,120]
[382060079,1756491069433,-500.0,0.00031038,5]
[382060080,1756491069442,-500.0,0.00031038,5]
[382060081,1756491069451,-500.88955119,0.00031038,5]
[382060082,1756491069461,-1500.0,0.00031068,5]
[382060083,1756491069470,-1501.74535346,0.00031068,5]
[382060084,1756491069480,-381.52642049,0.00031111,2]
[382060085,1756491069489,-501.58549658,0.00031121,5]
[382060086,1756491069499,-501.26839377,0.00031121,5]
[382060087,1756491069508,-8793.90080309,0.00031192,2]
[382060088,1756491069517,-324.47849844,0.00031261,2]
[382060089,1756491069527,-760.0,0.00031288,2]
[382060090,1756491069537,-151.0,0.00031292,7]
[382060091,1756491069546,-151.0,0.00031292,7]
[382060092,1756491069556,-151.0,0.00031292,7]
[382060093,1756491069565,-151.0,0.00031292,7]
[382060094,1756491069575,-151.422193,0.00031292,7]
[382060095,1756491069584,-151.0,0.00031292,7]
[382060096,1756491069595,-220.0,0.00031292,7]
[382060097,1756491069604,-160.0,0.00031292,7]
[382060098,1756491069613,-938.34,0.000315,7]
[382060099,1756491069622,-425.57542551,0.00031529,2]
[382060100,1756491069632,-587.0,0.00031545,2]
[382060101,1756491069641,-935.0,0.00031561,3]
[382060102,1756491069651,-151.0,0.00031574,7]
[382060103,1756491069660,-151.0,0.00031574,7]
[382060104,1756491069670,-433.548376,0.00031574,7]
[382060105,1756491069680,-433.548376,0.00031574,7]
[382060106,1756491069689,-433.548376,0.00031574,7]
[382060107,1756491069699,-433.548376,0.00031574,7]
[382060108,1756491069708,-151.0,0.00031574,7]
[382060109,1756491069718,-1000.0,0.00031586,5]
[382060110,1756491069728,-505.27719589,0.00031586,5]
[382060111,1756491069737,-2000.0,0.00031616,5]
[382060112,1756491069747,-2351.0,0.00031824,3]
[382060113,1756491069757,-860.0,0.00031836,2]
[382060114,1756491069767,-500.0,0.000319,5]
[382060115,1756491069776,-500.0,0.00031942,5]
[382060116,1756491069785,-151.0,0.00031942,7]
[382060117,1756491069795,-151.0,0.00031942,7]
[382060118,1756491069805,-151.0,0.00031942,7]
[382060119,1756491069815,-151.0,0.00031942,7]
[382060120,1756491069824,-720.0,0.00031955,20]
[382060121,1756491069834,-151.0,0.00031955,7]
[382060122,1756491069843,-151.0,0.00031955,7]
[382060123,1756491069853,-381.52642049,0.00032002,2]
[382060124,1756491069862,-668.9190779,0.00032134,5]
[382060125,1756491069871,-2003.29409815,0.00032164,5]
[382060126,1756491069882,-960.0,0.00032384,2]
[382060127,1756491069891,-502.76839876,0.00032448,5]
[382060128,1756491069900,-151.0,0.00032448,7]
[382060129,1756491069909,-151.0,0.00032448,7]
[382060130,1756491069919,-151.0,0.00032448,7]
[382060131,1756491069930,-151.0,0.00032448,7]
[382060132,1756491069940,-151.0,0.00032448,7]
[382060133,1756491069950,-151.0,0.00032448,7]
[382060134,1756491069961,-150.0,0.00032473,5]
[382060135,1756491069972,-1000.0,0.0003249,5]
[382060136,1756491069984,-151.0,0.00032622,7]
[382060137,1756491069996,-151.0,0.00032622,7]
[382060138,1756491070006,-151.0,0.00032622,7]
[382060139,1756491070016,-151.0,0.00032858,7]
[382060140,1756491070027,-151.0,0.00032858,7]
[382060141,1756491070036,-6740.36621861,0.00032858,2]
[382060142,1756491070047,-1060.0,0.00032932,2]
[382060143,1756491070058,-5000.0,0.00032957,4]
[382060144,1756491070067,-151.0,0.0003299,7]
[382060145,1756491070076,-151.0,0.00032996,7]
[382060146,1756491070086,-151.0,0.00032996,7]
[382060147,1756491070097,-153.292609,0.00032996,7]
[382060148,1756491070106,-151.0,0.00032996,7]
[382060149,1756491070116,-151.0,0.00032996,7]
[382060150,1756491070127,-239.149456,0.00032996,7]
[382060151,1756491070137,-300.0,0.00033021,5]
[382060152,1756491070148,-381.52642049,0.00033028,2]
[382060153,1756491070159,-332.27954556,0.00033038,5]
[382060154,1756491070170,-3431.00930049,0.00033318,2]
[382060155,1756491070180,-1160.0,0.00033479,2]
[382060156,1756491070191,-150.0,0.00033482,5]
[382060157,1756491070202,-150.0,0.00033482,5]
[382060158,1756491070213,-450.0,0.00033568,5]
[382060159,1756491070224,-1260.0,0.00034027,2]
[382060160,1756491070234,-250.0,0.0003403,5]
[382060161,1756491070244,-150.78409437,0.0003403,5]
[382060162,1756491070255,-938.34,0.000341,14]
[382060163,1756491070265,-823.0,0.00034104,2]
[382060164,1756491070274,-151.71632553,0.00034116,5]
[382060165,1756491070283,-151.0,0.00034159,7]
[382060166,1756491070293,-151.0,0.00034159,7]
[382060167,1756491070303,-433.548376,0.00034159,7]
[382060168,1756491070317,-433.548376,0.00034159,7]
[382060169,1756491070331,-433.548376,0.00034159,7]
[382060170,1756491070340,-433.548376,0.00034159,7]
[382060171,1756491070350,-151.0,0.00034159,7]
[382060172,1756491070360,-1344.0,0.00034558,3]
[382060173,1756491070371,-1360.0,0.00034575,2]
[382060174,1756491070380,-216.632092,0.00034578,5]
[382060175,1756491070390,-151.0,0.00034678,7]
[382060176,1756491070399,-151.0,0.00034678,7]
[382060177,1756491070412,-228.826784,0.0003499,7]
[382060178,1756491070423,-151.0,0.0003499,7]
[382060179,1756491070434,-240.136281,0.0003499,7]
[382060180,1756491070444,-151.0,0.0003499,7]
[382060181,1756491070455,-1000.0,0.00035123,2]
[382060182,1756491070465,-864.0,0.0003515,20]
[382060183,1756491070475,-159.0,0.000355,120]
[382060184,1756491070485,-151.0,0.00035735,30]
[382060185,1756491070495,-500.0,0.00036787,7]
[382060186,1756491070505,-1152.0,0.00036871,2]
[382060187,1756491070515,-845.3629311,0.00037,3]
[382060188,1756491070525,-728.90533013,0.00037558,7]
[382060189,1756491070535,-500.0,0.00038356,120]
[382060190,1756491070546,-500.0,0.00038401,7]
[382060191,1756491070557,-1000.0,0.00038665,30]
[382060192,1756491070567,-500.0,0.00038904,120]
[382060193,1756491070576,-500.0,0.00039452,120]
[382060194,1756491070586,-1587.0,0.00039862,5]
[382060195,1756491070596,-500.0,0.0004,120]